{"text_format":"1","workbook":"xlsx","n_sheets":14,"sheets":["Cover","Info","Results","E01","E02","E03","E04","E05","E06","E07","E08","E09","E10","About"],"not_rendered":{"charts":11,"images":45,"macros":1,"external_links":0,"defined_names":15,"comments":0,"pivot_tables":0},"unopened":[],"bounds":{"document_bytes":16777216,"sheet_cells":100000,"rows_first":2000,"rows_last":500,"rows_between":2000,"halvings":0,"cell_chars":16384,"cell_head_chars":4096},"cells_cut":0,"cells_raw":0,"read":"whole","date_system":"1900"}

{"sheet":"Cover","index":0,"n_rows":0,"n_cols":0,"rows_kept":0,"cut":false,"hidden":false,"merged":[]}

{"sheet":"Info","index":1,"n_rows":39,"n_cols":4,"rows_kept":39,"cut":false,"hidden":false,"merged":[[38,1,38,3],[39,1,39,3],[2,1,2,2],[3,1,3,2],[4,1,4,2],[5,1,5,2],[6,1,6,2],[37,1,37,3],[31,1,31,2],[32,1,32,2],[33,1,33,2],[34,1,34,2],[35,1,35,2]]}
[]
[]
[null,"Эта оценка",null,"Ответ"]
[null,"Название города"]
[null,"Тип города (муниципалитет, столичный регион и т.д.)"]
[null,"Страна "]
[null,"Дата оценки"]
[]
[null,"Профиль города (обязательно)","Ответ","Дата источника"]
[null,"Название высшего уровня власти (например, мэр, и т.д.):"]
[null,"Общее население города: "]
[null,"Площадь города в км2:"]
[null,"Плотность населения (на квадратный километр):"]
[null,"Численность молодёжи (15-24) (%):"]
[null,"Численность пожилых граждан (65+) (%):"]
[null,"Пол (домохозяйства, возглавляемые женщинами):"]
[null,"Уровень грамотности (% грамотного населения):"]
[null,"Уровень бедности (% населения не в нищете):"]
[null,"Средний доход семьи (в долларах США):"]
[null,"Жители, не являющиеся гражданами (%):"]
[null,"Наиболее вероятный (возможный) известный риск бедствия:"]
[null,"Самое серьезное (известное) бедствие:"]
[]
[null,"Профиль города (необязательно)","Ответ","Дата источника"]
[null,"Общее количество домохозяйств:"]
[null,"Людей на единицу:"]
[null,"Прожиточный минимум (в долларах США):"]
[null,"ВВП страны на душу населения (в долларах США)"]
[null,"Коэффициент Gini:"]
[null,"Городской продукт на душу населения (USD):"]
[]
[null,"Группа по уменьшению опасности бедствий и сопротивлению местного самоуправления",null,"Ответ"]
[null,"Имя лица, ведущего завершение оценки оценочной карточки:"]
[null,"Организация: "]
[null,"Контактная информация:"]
[null,"Готовность поделиться результатами или использоваться в качестве примера / тематического исследования БСРБ ООН и партнерами:"]
[]
[null,"Информация для заинтересованных сторон"]
[null,"Пожалуйста, перечислите всех заинтересованных сторон, которые поддержали эту оценку ниже."]

{"sheet":"Results","index":2,"n_rows":221,"n_cols":13,"rows_kept":221,"cut":false,"hidden":false,"merged":[[158,1,158,3],[134,1,134,6],[136,2,136,5],[137,2,137,5],[138,2,138,5],[139,2,139,5],[140,2,140,5],[141,2,141,5],[142,2,142,5],[146,1,146,6],[148,2,148,5],[149,2,149,5],[111,2,111,5],[98,2,98,5],[94,1,94,6],[96,2,96,5],[97,2,97,5],[106,1,106,6],[108,2,108,5],[109,2,109,5],[110,2,110,5],[99,2,99,5],[100,2,100,5],[101,2,101,5],[89,2,89,5],[85,1,85,6],[74,2,74,5],[75,2,75,5],[76,2,76,5],[77,2,77,5],[87,2,87,5],[88,2,88,5],[51,2,51,5],[61,2,61,5],[62,2,62,5],[63,2,63,5],[64,2,64,5],[131,2,131,5],[35,2,35,5],[36,2,36,5],[37,2,37,5],[123,2,123,5],[124,2,124,5],[125,2,125,5],[47,2,47,5],[48,2,48,5],[49,2,49,5],[50,2,50,5],[126,2,126,5],[127,2,127,5],[128,2,128,5],[129,2,129,5],[130,2,130,5]]}
[]
[]
[]
[]
[]
[]
[]
[]
[]
[]
[]
[]
[]
[]
[]
[]
[]
[]
[]
[]
[]
[]
[]
[]
[]
[]
[]
[]
[]
[]
[]
[]
[]
[null,"ПРИНЦИП 1 : ОРГАНИЗАЦИОННЫЕ МЕРЫ ДЛЯ ПОВЫШЕНИЯ УСТОЙЧИВОСТИ К БЕДСТВИЯМ "]
[]
[null,{"$f":"C175","v":"P1.1"},{"$f":"E175","v":"Предусматривает ли генеральный план развития города (или соответствующая стратегия/ план) реализацию подходов к снижению риска бедствий в соответствии с Сендайской рамочной программой?"},null,null,null,{"$f":"F175","v":0}]
[null,{"$f":"C176","v":"P1.2"},{"$f":"E176","v":"Существует ли механизм межведомственного/ межсекторального сотрудничества с соответствующими полномочиями и ресурсами для решения задач по снижению риска бедствий?"},null,null,null,{"$f":"F176","v":0}]
[null,{"$f":"C177","v":"P1.3"},{"$f":"E177","v":"Интегрировано ли обеспечение устойчивости к бедствиям с другими ключевыми функциями города ?"},null,null,null,{"$f":"F177","v":0}]
[]
[]
[]
[]
[]
[]
[]
[null,"ПРИНЦИП 2 :  ОПРЕДЕЛЕНИЕ, ПОНИМАНИЕ И ИСПОЛЬЗОВАНИЕ СЦЕНАРИЕВ ТЕКУЩИХ И БУДУЩИХ РИСКОВ"]
[]
[null,{"$f":"C178","v":"P2.1"},{"$f":"E178","v":"Знает ли руководство города о том, какие основные опасности угрожают городу и какова вероятность их возникновения?"},null,null,null,{"$f":"F178","v":0}]
[null,{"$f":"C179","v":"P2.2"},{"$f":"E179","v":"Есть ли общее понимание рисков у городских властей, различных коммунальных служб и других региональных и федеральных учреждений, управляющих инфраструктурой, такой как системы электроснабжения, водоснабжение, автомобильные и железные дороги и др.?"},null,null,null,{"$f":"F179","v":0}]
[null,{"$f":"C180","v":"P2.3"},{"$f":"E180","v":"Имеются ли согласованные сценарии воздействия и уязвимостей для всего города по каждому виду опасности или группе опасностей (см. выше)?"},null,null,null,{"$f":"F180","v":0}]
[null,{"$f":"C181","v":"P2.4"},{"$f":"E181","v":"Есть ли у городских властей и руководства инфраструктурных систем общее понимание возможных цепочек отказов (каскадный эффект) при различных сценариях?"},null,null,null,{"$f":"F181","v":0}]
[null,{"$f":"C182","v":"P2.5"},{"$f":"E182","v":"Имеются ли понятные карты опасностей и информация о существующих рисках? Выполняется ли регулярное обновление этой информации?"},null,null,null,{"$f":"F182","v":0}]
[]
[]
[]
[]
[]
[]
[]
[null,"ПРИНЦИП 3 : УЛУЧШЕНИЕ ФИНАНСОВЫХ ВОЗМОЖНОСТЕЙ ДЛЯ ПОВЫШЕНИЯ УСТОЙЧИВОСТИ"]
[]
[null,{"$f":"C183","v":"P3.1"},{"$f":"E183","v":"Городские власти/ ведущие учреждения знают обо всех источниках финансирования и о «дивидендах устойчивости», имеют хорошие связи, знают все доступные пути для привлечения внешнего финансирования и активно изыскивают средства для крупных инвестиций в устойчивое развитие?"},null,null,null,{"$f":"F183","v":0}]
[null,{"$f":"C184","v":"P3.2"},{"$f":"E184","v":"Имеется ли в городе конкретный «отдельный» (защищенный) бюджет, необходимые ресурсы и механизмы резервного фонда для уменьшения опасности бедствий на местном уровне (смягчение последствий, предотвращение, реагирование и восстановление)?"},null,null,null,{"$f":"F184","v":0}]
[null,{"$f":"C185","v":"P3.3"},{"$f":"E185","v":"Какой уровень застрахованности в городе, во всех секторах – деловом и общественном?"},null,null,null,{"$f":"F185","v":0}]
[null,{"$f":"C186","v":"P3.4"},{"$f":"E186","v":"Какие стимулы к повышению устойчивости существуют для различных секторов и сегментов бизнеса и общества?"},null,null,null,{"$f":"F186","v":0}]
[]
[]
[]
[]
[]
[]
[]
[null,"ПРИНЦИП 4 : УСТОЙЧИВОЕ РАЗВИТИЕ ГОРОДА"]
[]
[null,{"$f":"C187","v":"P4.1"},{"$f":"E187","v":"Разделен ли город на соответствующие зоны с учетом, например, воздействия основных сценариев риска на хозяйственную деятельность, сельскохозяйственное производство и центры сосредоточения населения?"},null,null,null,{"$f":"F187","v":0}]
[null,{"$f":"C188","v":"P4.2"},{"$f":"E188","v":"Способствуют ли применяемые подходы к новому городскому проектированию и строительству повышению устойчивости?"},null,null,null,{"$f":"F188","v":0}]
[null,{"$f":"C189","v":"P4.3"},{"$f":"E189","v":"Существуют ли строительные нормы и стандарты, учитывают ли они конкретные известные опасности и риски для города? Регулярно ли обновляются эти стандарты?"},null,null,null,{"$f":"F189","v":0}]
[null,{"$f":"C190","v":"P4.4"},{"$f":"E190","v":"Широко ли применяются правила зонирования, строительные нормы и стандарты, и обеспечивается ли их надлежащее соблюдение? "},null,null,null,{"$f":"F190","v":0}]
[]
[]
[]
[]
[]
[]
[]
[null,"ПРИНЦИП 5 : ЗАЩИТА ЕСТЕСТВЕННЫХ БУФЕРНЫХ ЗОН ДЛЯ УСИЛЕНИЯ ЗАЩИТНЫХ ФУНКЦИЙ ПРИРОДНЫХ ЭКОСИСТЕМ "]
[]
[null,{"$f":"C191","v":"P5.1"},{"$f":"E191","v":"Понимает ли руководство города, какие экосистемные функции осуществляют природные активы  на благо города?"},null,null,null,{"$f":"F191","v":0}]
[null,{"$f":"C192","v":"P5.2"},{"$f":"E192","v":"Поддерживается ли в городе развитие «зеленой» и «синей» инфраструктуры в крупных строительных и инфраструктурных проектах путем проведения соответствующей политики и обеспечения вспомогательными методическими материалами?"},null,null,null,{"$f":"F192","v":0}]
[null,{"$f":"C193","v":"P5.3"},{"$f":"E193","v":"Знает ли городская администрация об экосистемных услугах, которые город получает от природных активов за пределами его административных границ? Имеются ли соглашения с администрациями соседних населенных пунктов по поддержке защиты и управления этими активами?"},null,null,null,{"$f":"F193","v":0}]
[]
[]
[]
[]
[null,"ПРИНЦИП 6 : УКРЕПЛЕНИЕ ИНСТИТУЦИОНАЛЬНОГО ПОТЕНЦИАЛА В ЦЕЛЯХ ПОВЫШЕНИЯ УСТОЙЧИВОСТИ К БЕДСТВИЯМ"]
[]
[null,{"$f":"C194","v":"P6.1"},{"$f":"E194","v":"Имеет ли городская администрация свободный доступ ко всем специалистам, которые, по ее мнению, необходимы для снижения рисков и реагирования на выявленные сценарии бедствий?"},null,null,null,{"$f":"F194","v":0}]
[null,"P6.2","Проводится ли средствами массовой информации, органами образования и науки, МЧС России, скоординированная работа по предоставлению населению понятной, применимой и непротиворечивой информации об опасностях, рисках и стихийных бедствиях?",null,null,null,0]
[null,"P6.3","В каком объеме осуществляется обмен данными по устойчивости города к бедствиям с другими организациями, участвующими в обеспечении устойчивости города?",null,null,null,0]
[null,"P6.4","Имеются ли курсы подготовки по вопросам риска и устойчивости к бедствиям для всех секторов города, включая муниципальные организации, коммерческие компании, неправительственные организации и население?",null,null,null,0]
[null,"P6.5","Доступны ли учебные материалы на большинстве языков, используемых населением города?",null,null,null,0]
[null,"P6.6","Стремится ли город активно обмениваться знаниями и учиться у других городов, сталкивающихся с подобными проблемами?",null,null,null,0]
[]
[]
[]
[]
[null,"ПРИНЦИП 7 :  ПОНИМАНИЕ И УКРЕПЛЕНИЕ ОБЩЕСТВЕННОО ПОТЕНЦИАЛ ДЛЯ ПОВЫШЕНИЯ УСТОЙЧИВОСТИ. СОЗДАНИЕ БЛАГОПРИЯТНОЙ СРЕДЫ ДЛЯ СОЦИАЛЬНОЙ СПЛОЧЕННОСТИ, ФОРМИРОВАНИЯ КУЛЬТУРЫ ВЗАИМОПОМОЩИ ЧЕРЕЗ ПРИЗНАНИЕ РОЛИ КУЛЬТУРНОГО НАСЛЕДИЯ И ОБРАЗОВАНИЯ В СНИЖЕНИИ РИСКА БЕДСТВИЙ"]
[]
[null,{"$f":"C200","v":"P7.1"},{"$f":"E200","v":"Участвуют ли местные общественные организации в снижении риска и реагировании на последствия ЧС в каждом районе города?"},null,null,null,{"$f":"F200","v":0}]
[null,{"$f":"C201","v":"P7.2"},{"$f":"E201","v":"Имеются ли программы регулярного обучения для наиболее уязвимых групп населения города?"},null,null,null,{"$f":"F201","v":0}]
[null,{"$f":"C202","v":"P7.3"},{"$f":"E202","v":"Какая доля коммерческих предприятий имеет оформленный план непрерывности бизнеса (ГОСТ Р ИСО 22301-2014), который пересматривался за последние 18 месяцев?"},null,null,null,{"$f":"F202","v":0}]
[null,{"$f":"C203","v":"P7.4"},{"$f":"E203","v":"Насколько эффективно городская администрация взаимодействует с гражданами в вопросах снижения риска бедствий?"},null,null,null,{"$f":"F203","v":0}]
[]
[]
[]
[]
[]
[]
[]
[]
[]
[null,"ПРИНЦИП 8 :  ПОВЫШЕНИЕ УСТОЙЧИВОСТИ ИНФРАСТРУКТУРЫ"]
[]
[null,{"$f":"C204","v":"P8.1"},{"$f":"E204","v":"Является ли приоритетом для городских властей обеспечение устойчивости критически важной инфраструктуры к бедствиям? Имеется (и реализуется) ли городской план или стратегия по защите критически важной инфраструктуры?"},null,null,null,{"$f":"F204","v":0}]
[null,{"$f":"C205","v":"P8.2"},{"$f":"E205","v":"Является ли существующая защитная инфраструктура хорошо спроектированной и хорошо построенной с учетом информации о рисках?"},null,null,null,{"$f":"F205","v":0}]
[null,"P8.3",{"$f":"E206","v":"Ожидаются ли значительные перебои в предоставлении этих двух видов услуг в значительной части города в случае реализации согласованных сценариев бедствия?"},null,null,null,0]
[null,"P8.4",{"$f":"E207","v":"Ожидаются ли серьезные перебои в значительной части города в случае реализации наихудшего сценария? Останутся ли безопасными (то есть без риска утечек, опасности поражения электрическим током и т.д.) основные линии энергоснабжения в случае их повреждения?"},null,null,null,0]
[null,"P8.5","Ожидаются ли значительные перебои в значительной части города в случае реализации наихудшего сценария? Останутся ли в этом случае безопасными (то есть не подверженными риску наводнений, воздействию ударной волны и т.д.) и проходимыми основные транспортные пути?",null,null,null,0]
[null,"P8.6","Ожидаются ли значительные перебои в услугах связи для значительной части города в случае реализации наихудшего сценария бедствия?",null,null,null,0]
[null,"P8.7","Достаточно ли возможностей у системы здравоохранения для оказания необходимой помощи при ожидаемых тяжелых травмах в случае реализации наихудшего сценария бедствий?",null,null,null,0]
[null,"P8.8","Какой процент образовательных учреждений подвержены риску повреждения при наиболее вероятном и наихудшем сценариях?",null,null,null,0]
[null,{"$f":"C212","v":"P8.9"},"Достаточно ли средств реагирования на бедствия с учетом возможности получения, в случае необходимости, помощи от Министерства обороны или граждан?",null,null,null,0]
[]
[]
[null,"ПРИНЦИП 9 : ОБЕСПЕЧЕНИЕ ЭФФЕКТИВНОГО РЕАГИРОВАНИЯ НА БЕДСТВИЯ"]
[]
[null,{"$f":"C213","v":"P9.1"},{"$f":"E213","v":"Имеется ли у города план или стандартная процедура действий в ответ на ранние оповещения и прогноз? Какая доля населения охвачена системой оповещения?"},null,null,null,{"$f":"F213","v":0}]
[null,{"$f":"C214","v":"P9.2"},"Существует ли план предупреждения и ликвидации ЧС, в котором отражаются меры по снижению риска, обеспечению готовности и реагированию на чрезвычайные ситуации в городе?",null,null,null,0]
[null,"P9.3","Имеет ли ответственный орган, в обязанности которого входит реагирование на ЧС, достаточный кадровый потенциал для экстренного реагирования в случае развития сценария катастрофического события?",null,null,null,0]
[null,"P9.4","Определены ли четко потребности в оборудовании и запасах для оказания помощи, а также наличие оборудование?",null,null,null,0]
[null,"P9.5","Сможет ли город поддерживать необходимые условия для сохранения жизни своего населения после бедствия?  ",null,null,null,0]
[null,"P9.6","Имеется ли оперативный центр управления при ЧС, в работе которого участвуют все ведомства, имеющий автоматизированные стандартные рабочие процедуры на случай реализации наиболее вероятного и наихудшего сценариев?",null,null,null,0]
[null,"P9.7","Проводятся ли практические учения с участием и населения, и профессионалов?",null,null,null,0]
[]
[]
[]
[null,"ПРИНЦИП 10 : БЫСТРОЕ ВОССТАНОВЛЕНИЕ И ПРИНЦИП «СТРОИТЬ ЛУЧШЕ, ЧЕМ БЫЛО»"]
[]
[null,{"$f":"C220","v":"P10.1"},{"$f":"E220","v":"Имеется ли стратегия или процедура восстановления после бедствия, включающая перезапуск экономики, социальные аспекты и т.д.?"},null,null,null,{"$f":"F220","v":0}]
[null,{"$f":"C221","v":"P10.2"},{"$f":"E221","v":"Предусматривает ли процедура разбора событий после бедствия анализ неудач и извлечение уроков, которые затем используются при разработке и осуществлении проектов по восстановлению?"},null,null,null,{"$f":"F221","v":0}]
[]
[]
[]
[]
[]
[]
[]
[]
[null,{"$f":"TODAY()","v":"2022-04-05"}]
[]
[]
[null,null,"Label","Name",null,"Essential","TotalScore","MaxScore","Label"]
[null,null,"S1","1.   ОРГАНИЗАЦИОННЫЕ МЕРЫ ДЛЯ ПОВЫШЕНИЯ УСТОЙЧИВОСТИ К БЕДСТВИЯМ ",null,"E1",{"$f":"SUMIFS($F$175:$F$1154,$B$175:$B$1154,F163)","v":0},{"$f":"COUNTIFS($B$175:$B$221,F163)*3","v":9},"01",null,{"$f":"SUM(G163:G172)","v":0},{"$f":"K163/K164","v":0},{"$f":"CONCATENATE(\"Общий счет \",SUM(G163:G172),\" / \",SUM(H163:H172))","v":"Общий счет 0 / 141"}]
[null,null,"S2","2.  ОПРЕДЕЛЕНИЕ, ПОНИМАНИЕ И ИСПОЛЬЗОВАНИЕ СЦЕНАРИЕВ ТЕКУЩИХ И БУДУЩИХ РИСКОВ",null,"E2",0,15,"02",null,{"$f":"SUM(H163:H172)","v":141},{"$f":"1-L163","v":1}]
[null,null,"S3","3.   УЛУЧШЕНИЕ ФИНАНСОВЫХ ВОЗМОЖНОСТЕЙ ДЛЯ ПОВЫШЕНИЯ УСТОЙЧИВОСТИ",null,"E3",0,12,"03"]
[null,null,"S4","4.   УСТОЙЧИВОЕ РАЗВИТИЕ ГОРОДА",null,"E4",0,12,"04"]
[null,null,"S5","5.   ЗАЩИТА ЕСТЕСТВЕННЫХ БУФЕРНЫХ ЗОН ДЛЯ УСИЛЕНИЯ ЗАЩИТНЫХ ФУНКЦИЙ ПРИРОДНЫХ ЭКОСИСТЕМ ",null,"E5",0,9,"05"]
[null,null,"S6","6.   УКРЕПЛЕНИЕ ИНСТИТУЦИОНАЛЬНОГО ПОТЕНЦИАЛА В ЦЕЛЯХ ПОВЫШЕНИЯ УСТОЙЧИВОСТИ К БЕДСТВИЯМ",null,"E6",0,18,"06"]
[null,null,"S7","7.   ПОНИМАНИЕ И УКРЕПЛЕНИЕ ОБЩЕСТВЕННОО ПОТЕНЦИАЛ ДЛЯ ПОВЫШЕНИЯ УСТОЙЧИВОСТИ. СОЗДАНИЕ БЛАГОПРИЯТНОЙ СРЕДЫ ДЛЯ СОЦИАЛЬНОЙ СПЛОЧЕННОСТИ, ФОРМИРОВАНИЯ КУЛЬТУРЫ ВЗАИМОПОМОЩИ ЧЕРЕЗ ПРИЗНАНИЕ РОЛИ КУЛЬТУРНОГО НАСЛЕДИЯ И ОБРАЗОВАНИЯ В СНИЖЕНИИ РИСКА БЕДСТВИЙ",null,"E7",0,12,"07"]
[null,null,"S8","8.   ПОВЫШЕНИЕ УСТОЙЧИВОСТИ ИНФРАСТРУКТУРЫ",null,"E8",0,27,"08"]
[null,null,"S9","9.  ОБЕСПЕЧЕНИЕ ЭФФЕКТИВНОГО РЕАГИРОВАНИЯ НА БЕДСТВИЯ",null,"E9",0,21,"09"]
[null,null,"S10","10. БЫСТРОЕ ВОССТАНОВЛЕНИЕ И ПРИНЦИП «СТРОИТЬ ЛУЧШЕ, ЧЕМ БЫЛО»",null,"E10",0,6,"10"]
[]
[null,"Section","Ref",null,"Question","SelectedScore","ThisScore"]
[null,"E1","P1.1",null,"Предусматривает ли генеральный план развития города (или соответствующая стратегия/ план) реализацию подходов к снижению риска бедствий в соответствии с Сендайской рамочной программой?",{"$f":"IF(G175=\"\",0,IF(G175=0,0,4-G175))","v":0},{"$f":"'E01'!$E$7","v":0}]
[null,"E1","P1.2",null,"Существует ли механизм межведомственного/ межсекторального сотрудничества с соответствующими полномочиями и ресурсами для решения задач по снижению риска бедствий?",{"$f":"IF(G176=\"\",0,IF(G176=0,0,4-G176))","v":0},{"$f":"'E01'!$E$18","v":0}]
[null,"E1","P1.3",null,"Интегрировано ли обеспечение устойчивости к бедствиям с другими ключевыми функциями города ?",0,{"$f":"'E01'!$E$29","v":0}]
[null,"E2","P2.1",null,"Знает ли руководство города о том, какие основные опасности угрожают городу и какова вероятность их возникновения?",0,{"$f":"'E02'!$E$7","v":0}]
[null,"E2","P2.2",null,"Есть ли общее понимание рисков у городских властей, различных коммунальных служб и других региональных и федеральных учреждений, управляющих инфраструктурой, такой как системы электроснабжения, водоснабжение, автомобильные и железные дороги и др.?",0,{"$f":"'E02'!$E$18","v":0}]
[null,"E2","P2.3",null,"Имеются ли согласованные сценарии воздействия и уязвимостей для всего города по каждому виду опасности или группе опасностей (см. выше)?",0,{"$f":"'E02'!$E$29","v":0}]
[null,"E2","P2.4",null,"Есть ли у городских властей и руководства инфраструктурных систем общее понимание возможных цепочек отказов (каскадный эффект) при различных сценариях?",0,{"$f":"'E02'!$E$40","v":0}]
[null,"E2","P2.5",null,"Имеются ли понятные карты опасностей и информация о существующих рисках? Выполняется ли регулярное обновление этой информации?",0,{"$f":"'E02'!$E$51","v":0}]
[null,"E3","P3.1",null,"Городские власти/ ведущие учреждения знают обо всех источниках финансирования и о «дивидендах устойчивости», имеют хорошие связи, знают все доступные пути для привлечения внешнего финансирования и активно изыскивают средства для крупных инвестиций в устойчивое развитие?",0,{"$f":"'E03'!$E$7","v":0}]
[null,"E3","P3.2",null,"Имеется ли в городе конкретный «отдельный» (защищенный) бюджет, необходимые ресурсы и механизмы резервного фонда для уменьшения опасности бедствий на местном уровне (смягчение последствий, предотвращение, реагирование и восстановление)?",0,{"$f":"'E03'!$E$18","v":0}]
[null,"E3","P3.3",null,"Какой уровень застрахованности в городе, во всех секторах – деловом и общественном?",0,{"$f":"'E03'!$E$29","v":0}]
[null,"E3","P3.4",null,"Какие стимулы к повышению устойчивости существуют для различных секторов и сегментов бизнеса и общества?",0,{"$f":"'E03'!$E$40","v":0}]
[null,"E4","P4.1",null,"Разделен ли город на соответствующие зоны с учетом, например, воздействия основных сценариев риска на хозяйственную деятельность, сельскохозяйственное производство и центры сосредоточения населения?",0,{"$f":"'E04'!$E$7","v":0}]
[null,"E4","P4.2",null,"Способствуют ли применяемые подходы к новому городскому проектированию и строительству повышению устойчивости?",0,{"$f":"'E04'!$E$18","v":0}]
[null,"E4","P4.3",null,"Существуют ли строительные нормы и стандарты, учитывают ли они конкретные известные опасности и риски для города? Регулярно ли обновляются эти стандарты?",0,{"$f":"'E04'!$E$29","v":0}]
[null,"E4","P4.4",null,"Широко ли применяются правила зонирования, строительные нормы и стандарты, и обеспечивается ли их надлежащее соблюдение? ",0,{"$f":"'E04'!$E$40","v":0}]
[null,"E5","P5.1",null,"Понимает ли руководство города, какие экосистемные функции осуществляют природные активы  на благо города?",0,{"$f":"'E05'!$E$7","v":0}]
[null,"E5","P5.2",null,"Поддерживается ли в городе развитие «зеленой» и «синей» инфраструктуры в крупных строительных и инфраструктурных проектах путем проведения соответствующей политики и обеспечения вспомогательными методическими материалами?",0,{"$f":"'E05'!$E$18","v":0}]
[null,"E5","P5.3",null,"Знает ли городская администрация об экосистемных услугах, которые город получает от природных активов за пределами его административных границ? Имеются ли соглашения с администрациями соседних населенных пунктов по поддержке защиты и управления этими активами?",0,{"$f":"'E05'!$E$29","v":0}]
[null,"E6","P6.1",null,"Имеет ли городская администрация свободный доступ ко всем специалистам, которые, по ее мнению, необходимы для снижения рисков и реагирования на выявленные сценарии бедствий?",0,{"$f":"'E06'!$E$7","v":0}]
[null,"E6","P6.2",null,"Проводится ли средствами массовой информации, органами образования и науки, МЧС России, скоординированная работа по предоставлению населению понятной, применимой и непротиворечивой информации об опасностях, рисках и стихийных бедствиях?",0,{"$f":"'E06'!$E$18","v":0}]
[null,"E6","P6.3",null,"В каком объеме осуществляется обмен данными по устойчивости города к бедствиям с другими организациями, участвующими в обеспечении устойчивости города?",0,{"$f":"'E06'!$E$29","v":0}]
[null,"E6","P6.4",null,"Имеются ли курсы подготовки по вопросам риска и устойчивости к бедствиям для всех секторов города, включая муниципальные организации, коммерческие компании, неправительственные организации и население?",0,{"$f":"'E06'!$E$40","v":0}]
[null,"E6","P6.5",null,"Доступны ли учебные материалы на большинстве языков, используемых населением города?",0,{"$f":"'E06'!$E$51","v":0}]
[null,"E6","P6.6",null,"Стремится ли город активно обмениваться знаниями и учиться у других городов, сталкивающихся с подобными проблемами?",0,{"$f":"'E06'!$E$62","v":0}]
[null,"E7","P7.1",null,"Участвуют ли местные общественные организации в снижении риска и реагировании на последствия ЧС в каждом районе города?",0,{"$f":"'E07'!$E$7","v":0}]
[null,"E7","P7.2",null,"Имеются ли программы регулярного обучения для наиболее уязвимых групп населения города?",0,{"$f":"'E07'!$E$18","v":0}]
[null,"E7","P7.3",null,"Какая доля коммерческих предприятий имеет оформленный план непрерывности бизнеса (ГОСТ Р ИСО 22301-2014), который пересматривался за последние 18 месяцев?",0,{"$f":"'E07'!$E$29","v":0}]
[null,"E7","P7.4",null,"Насколько эффективно городская администрация взаимодействует с гражданами в вопросах снижения риска бедствий?",0,{"$f":"'E07'!$E$40","v":0}]
[null,"E8","P8.1",null,"Является ли приоритетом для городских властей обеспечение устойчивости критически важной инфраструктуры к бедствиям? Имеется (и реализуется) ли городской план или стратегия по защите критически важной инфраструктуры?",0,{"$f":"'E08'!$E$7","v":0}]
[null,"E8","P8.2",null,"Является ли существующая защитная инфраструктура хорошо спроектированной и хорошо построенной с учетом информации о рисках?",0,{"$f":"'E08'!$E$18","v":0}]
[null,"E8","P8.3",null,"Ожидаются ли значительные перебои в предоставлении этих двух видов услуг в значительной части города в случае реализации согласованных сценариев бедствия?",0,{"$f":"'E08'!$E$29","v":0}]
[null,"E8","P8.4",null,"Ожидаются ли серьезные перебои в значительной части города в случае реализации наихудшего сценария? Останутся ли безопасными (то есть без риска утечек, опасности поражения электрическим током и т.д.) основные линии энергоснабжения в случае их повреждения?",0,{"$f":"'E08'!$E$40","v":0}]
[null,"E8","P8.5",null,"Ожидаются ли значительные перебои в значительной части города в случае реализации наихудшего сценария? Останутся ли в этом случае безопасными (то есть не подверженными риску наводнений, воздействию ударной волны и т.д.) и проходимыми основные транспортные пути?",0,{"$f":"'E08'!$E$51","v":0}]
[null,"E8","P8.6",null,"Ожидаются ли значительные перебои в услугах связи для значительной части города в случае реализации наихудшего сценария бедствия?",0,{"$f":"'E08'!$E$62","v":0}]
[null,"E8","P8.7",null,"Достаточно ли возможностей у системы здравоохранения для оказания необходимой помощи при ожидаемых тяжелых травмах в случае реализации наихудшего сценария бедствий?",0,{"$f":"'E08'!$E$73","v":0}]
[null,"E8","P8.8",null,"Какой процент образовательных учреждений подвержены риску повреждения при наиболее вероятном и наихудшем сценариях?",0,{"$f":"'E08'!$E$84","v":0}]
[null,"E8","P8.9",null,"Достаточно ли средств реагирования на бедствия с учетом возможности получения, в случае необходимости, помощи от Министерства обороны или граждан?",0,{"$f":"'E08'!$E$95","v":0}]
[null,"E9","P9.1",null,"Имеется ли у города план или стандартная процедура действий в ответ на ранние оповещения и прогноз? Какая доля населения охвачена системой оповещения?",0,{"$f":"'E09'!$E$7","v":0}]
[null,"E9","P9.2",null,"Существует ли план предупреждения и ликвидации ЧС, в котором отражаются меры по снижению риска, обеспечению готовности и реагированию на чрезвычайные ситуации в городе?",0,{"$f":"'E09'!$E$18","v":0}]
[null,"E9","P9.3",null,"Имеет ли ответственный орган, в обязанности которого входит реагирование на ЧС, достаточный кадровый потенциал для экстренного реагирования в случае развития сценария катастрофического события?",0,{"$f":"'E09'!$E$29","v":0}]
[null,"E9","P9.4",null,"Определены ли четко потребности в оборудовании и запасах для оказания помощи, а также наличие оборудование?",0,{"$f":"'E09'!$E$40","v":0}]
[null,"E9","P9.5",null,"Сможет ли город поддерживать необходимые условия для сохранения жизни своего населения после бедствия?  ",0,{"$f":"'E09'!$E$51","v":0}]
[null,"E9","P9.6",null,"Имеется ли оперативный центр управления при ЧС, в работе которого участвуют все ведомства, имеющий автоматизированные стандартные рабочие процедуры на случай реализации наиболее вероятного и наихудшего сценариев?",0,{"$f":"'E09'!$E$62","v":0}]
[null,"E9","P9.7",null,"Проводятся ли практические учения с участием и населения, и профессионалов?",0,{"$f":"'E09'!$E$73","v":0}]
[null,"E10","P10.1",null,"Имеется ли стратегия или процедура восстановления после бедствия, включающая перезапуск экономики, социальные аспекты и т.д.?",0,{"$f":"'E10'!$E$7","v":0}]
[null,"E10","P10.2",null,"Предусматривает ли процедура разбора событий после бедствия анализ неудач и извлечение уроков, которые затем используются при разработке и осуществлении проектов по восстановлению?",0,{"$f":"'E10'!$E$18","v":0}]

{"sheet":"E01","index":3,"n_rows":175,"n_cols":7,"rows_kept":175,"cut":false,"hidden":false,"merged":[[28,2,31,3],[27,2,27,3],[14,2,14,3],[15,2,15,3],[16,2,16,3],[3,2,3,3],[4,2,4,3],[5,2,5,3],[25,2,25,3],[26,2,26,3],[6,2,9,3],[17,2,20,3]]}
[]
[]
[null,"П 1.1 – Планирование"]
[null,"Вопрос ","Комментарии"]
[]
[null,"Ответ","Средства проверки (пояснения и доказательства)"]
[null,null,null,null,null,{"$f":"IF(E7=1,TRUE,FALSE)","v":false}]
[null,null,null,null,null,{"$f":"IF(E7=2,TRUE,FALSE)","v":false}]
[null,null,null,null,null,{"$f":"IF(E7=3,TRUE,FALSE)","v":false}]
[null,null,null,null,null,{"$f":"IF(E7=4,TRUE,FALSE)","v":false}]
[null,"Действия для достижения максимальной устойчивости","Ответственное учреждение","Сроки"]
[]
[]
[null,"П 1.2 – Организация, координация и участие"]
[null,"Вопрос","Комментарии"]
[]
[null,"Ответ","Средства проверки (пояснения и доказательства)"]
[null,null,null,null,null,{"$f":"IF(E18=1,TRUE,FALSE)","v":false}]
[null,null,null,null,null,{"$f":"IF(E18=2,TRUE,FALSE)","v":false}]
[null,null,null,null,null,{"$f":"IF(E18=3,TRUE,FALSE)","v":false}]
[null,null,null,null,null,{"$f":"IF(E18=4,TRUE,FALSE)","v":false}]
[null,"Действия для достижения максимальной устойчивости","Ответственное учреждение","Сроки"]
[]
[]
[null,"П 1.3 - Интеграция"]
[null,"Вопрос","Комментарии"]
[]
[]
[null,null,null,null,null,{"$f":"IF(E29=1,TRUE,FALSE)","v":false}]
[null,null,null,null,null,{"$f":"IF(E29=2,TRUE,FALSE)","v":false}]
[null,null,null,null,null,{"$f":"IF(E29=3,TRUE,FALSE)","v":false}]
[null,null,null,null,null,{"$f":"IF(E29=4,TRUE,FALSE)","v":false}]
[null,"Действия для достижения максимальной устойчивости","Ответственное учреждение","Сроки"]
[]
[]
[]
[]
[]
[]
[]
[]
[]
[]
[]
[]
[]
[]
[]
[]
[]
[]
[]
[]
[]
[]
[]
[]
[]
[]
[]
[]
[]
[]
[]
[]
[]
[]
[]
[]
[]
[]
[]
[]
[]
[]
[]
[]
[]
[]
[]
[]
[]
[]
[]
[]
[]
[]
[]
[]
[]
[]
[]
[]
[]
[]
[]
[]
[]
[]
[]
[]
[]
[]
[]
[]
[]
[]
[]
[]
[]
[]
[]
[]
[]
[]
[]
[]
[]
[]
[]
[]
[]
[]
[]
[]
[]
[]
[]
[]
[]
[]
[]
[]
[]
[]
[]
[]
[]
[]
[]
[]
[]
[]
[]
[]
[]
[]
[]
[]
[]
[]
[]
[]
[]
[]
[]
[]
[]
[]
[]
[]
[]
[]
[]
[]
[]
[]
[]
[]
[]
[]
[]
[]
[]
[null,null,null,null,null,null,{"$f":"'E01'!$E$7","v":0}]

{"sheet":"E02","index":4,"n_rows":55,"n_cols":6,"rows_kept":55,"cut":false,"hidden":false,"merged":[[3,2,3,3],[4,2,4,3],[5,2,5,3],[15,2,15,3],[16,2,16,3],[14,2,14,3],[6,2,9,3],[38,2,38,3],[17,2,20,3],[28,2,31,3],[39,2,42,3],[50,2,53,3],[47,2,47,3],[48,2,48,3],[49,2,49,3],[25,2,25,3],[26,2,26,3],[27,2,27,3],[36,2,36,3],[37,2,37,3]]}
[]
[]
[null,"П2.1 – Оценка опасностей"]
[null,"Вопрос","Комментарии"]
[]
[null,"Ответ","Средства проверки (пояснения и доказательства)"]
[null,null,null,null,null,{"$f":"IF(E7=1,TRUE,FALSE)","v":false}]
[null,null,null,null,null,{"$f":"IF(E7=2,TRUE,FALSE)","v":false}]
[null,null,null,null,null,{"$f":"IF(E7=3,TRUE,FALSE)","v":false}]
[null,null,null,null,null,{"$f":"IF(E7=4,TRUE,FALSE)","v":false}]
[null,"Действия для достижения максимальной устойчивости","Ответственное учреждение","Сроки"]
[]
[]
[null,"П 2.2 – Общее понимание рисков для инфраструктуры "]
[null,"Вопрос","Комментарии"]
[]
[null,"Ответ","Средства проверки (пояснения и доказательства)"]
[null,null,null,null,null,{"$f":"IF(E18=1,TRUE,FALSE)","v":false}]
[null,null,null,null,null,{"$f":"IF(E18=2,TRUE,FALSE)","v":false}]
[null,null,null,null,null,{"$f":"IF(E18=3,TRUE,FALSE)","v":false}]
[null,null,null,null,null,{"$f":"IF(E18=4,TRUE,FALSE)","v":false}]
[null,"Действия для достижения максимальной устойчивости","Ответственное учреждение","Сроки"]
[]
[]
[null,"П 2.3 – Знание воздействия внешних факторов и уязвимостей"]
[null,"Вопрос","Комментарии"]
[]
[null,"Ответ","Средства проверки (пояснения и доказательства)"]
[null,null,null,null,null,{"$f":"IF(E29=1,TRUE,FALSE)","v":false}]
[null,null,null,null,null,{"$f":"IF(E29=2,TRUE,FALSE)","v":false}]
[null,null,null,null,null,{"$f":"IF(E29=3,TRUE,FALSE)","v":false}]
[null,null,null,null,null,{"$f":"IF(E29=4,TRUE,FALSE)","v":false}]
[null,"Действия для достижения максимальной устойчивости","Ответственное учреждение","Сроки"]
[]
[]
[null,"П 2. 4 – Каскадные эффекты"]
[null,"Вопрос","Комментарии"]
[]
[null,"Ответ","Средства проверки (пояснения и доказательства)"]
[null,null,null,null,null,{"$f":"IF(E40=1,TRUE,FALSE)","v":false}]
[null,null,null,null,null,{"$f":"IF(E40=2,TRUE,FALSE)","v":false}]
[null,null,null,null,null,{"$f":"IF(E40=3,TRUE,FALSE)","v":false}]
[null,null,null,null,null,{"$f":"IF(E40=4,TRUE,FALSE)","v":false}]
[null,"Действия для достижения максимальной устойчивости","Ответственное учреждение","Сроки"]
[]
[]
[null,"П 2.5 – Представление и обновление информации о риске"]
[null,"Вопрос","Комментарии"]
[]
[null,"Ответ","Средства проверки (пояснения и доказательства)"]
[null,null,null,null,null,{"$f":"IF(E51=1,TRUE,FALSE)","v":false}]
[null,null,null,null,null,{"$f":"IF(E51=2,TRUE,FALSE)","v":false}]
[null,null,null,null,null,{"$f":"IF(E51=3,TRUE,FALSE)","v":false}]
[null,null,null,null,null,{"$f":"IF(E51=4,TRUE,FALSE)","v":false}]
[null,"Действия для достижения максимальной устойчивости","Ответственное учреждение","Сроки"]

{"sheet":"E03","index":5,"n_rows":44,"n_cols":6,"rows_kept":44,"cut":false,"hidden":false,"merged":[[39,2,42,3],[38,2,38,3],[3,2,3,3],[4,2,4,3],[5,2,5,3],[14,2,14,3],[15,2,15,3],[16,2,16,3],[25,2,25,3],[26,2,26,3],[27,2,27,3],[36,2,36,3],[37,2,37,3],[17,2,20,3],[6,2,9,3],[28,2,31,3]]}
[]
[]
[null,"П 3.1 – Знание путей привлечения новых инвестиций в город"]
[null,"Вопрос","Комментарии"]
[]
[null,"Ответ","Средства проверки (пояснения и доказательства)"]
[null,null,null,null,null,{"$f":"IF(E7=1,TRUE,FALSE)","v":false}]
[null,null,null,null,null,{"$f":"IF(E7=2,TRUE,FALSE)","v":false}]
[null,null,null,null,null,{"$f":"IF(E7=3,TRUE,FALSE)","v":false}]
[null,null,null,null,null,{"$f":"IF(E7=4,TRUE,FALSE)","v":false}]
[null,"Действия для достижения максимальной устойчивости","Ответственное учреждение","Сроки"]
[]
[]
[null,"П 3.2 – Финансовый план и бюджет на повышение устойчивости, включая резервные фонды "]
[null,"Вопрос","Комментарии"]
[]
[null,"Ответ","Средства проверки (пояснения и доказательства)"]
[null,null,null,null,null,{"$f":"IF(E18=1,TRUE,FALSE)","v":false}]
[null,null,null,null,null,{"$f":"IF(E18=2,TRUE,FALSE)","v":false}]
[null,null,null,null,null,{"$f":"IF(E18=3,TRUE,FALSE)","v":false}]
[null,null,null,null,null,{"$f":"IF(E18=4,TRUE,FALSE)","v":false}]
[null,"Действия для достижения максимальной устойчивости","Ответственное учреждение","Сроки"]
[]
[]
[null,"П 3.3 – Страхование"]
[null,"Вопрос","Комментарии"]
[]
[null,"Ответ","Средства проверки (пояснения и доказательства)"]
[null,null,null,null,null,{"$f":"IF(E29=1,TRUE,FALSE)","v":false}]
[null,null,null,null,null,{"$f":"IF(E29=2,TRUE,FALSE)","v":false}]
[null,null,null,null,null,{"$f":"IF(E29=3,TRUE,FALSE)","v":false}]
[null,null,null,null,null,{"$f":"IF(E29=4,TRUE,FALSE)","v":false}]
[null,"Действия для достижения максимальной устойчивости","Ответственное учреждение","Сроки"]
[]
[]
[null,"П 3.4 – Стимулирование"]
[null,"Вопрос","Комментарии"]
[]
[null,"Ответ","Средства проверки (пояснения и доказательства)"]
[null,null,null,null,null,{"$f":"IF(E40=1,TRUE,FALSE)","v":false}]
[null,null,null,null,null,{"$f":"IF(E40=2,TRUE,FALSE)","v":false}]
[null,null,null,null,null,{"$f":"IF(E40=3,TRUE,FALSE)","v":false}]
[null,null,null,null,null,{"$f":"IF(E40=4,TRUE,FALSE)","v":false}]
[null,"Действия для достижения максимальной устойчивости","Ответственное учреждение","Сроки"]

{"sheet":"E04","index":6,"n_rows":44,"n_cols":6,"rows_kept":44,"cut":false,"hidden":false,"merged":[[3,2,3,3],[4,2,4,3],[5,2,5,3],[14,2,14,3],[15,2,15,3],[17,2,20,3],[6,2,9,3],[28,2,31,3],[39,2,42,3],[25,2,25,3],[26,2,26,3],[27,2,27,3],[36,2,36,3],[37,2,37,3],[38,2,38,3],[16,2,16,3]]}
[]
[]
[null,"П 4.1 – Зонирование землепользования"]
[null,"Вопрос","Комментарии"]
[]
[null,"Ответ","Средства проверки (пояснения и доказательства)"]
[null,null,null,null,null,{"$f":"IF(E7=1,TRUE,FALSE)","v":false}]
[null,null,null,null,null,{"$f":"IF(E7=2,TRUE,FALSE)","v":false}]
[null,null,null,null,null,{"$f":"IF(E7=3,TRUE,FALSE)","v":false}]
[null,null,null,null,null,{"$f":"IF(E7=4,TRUE,FALSE)","v":false}]
[null,"Действия для достижения максимальной устойчивости","Ответственное учреждение","Сроки"]
[]
[]
[null,"П 4.2 – Новое городское строительство"]
[null,"Вопрос","Комментарии"]
[]
[null,"Ответ","Средства проверки (пояснения и доказательства)"]
[null,null,null,null,null,{"$f":"IF(E18=1,TRUE,FALSE)","v":false}]
[null,null,null,null,null,{"$f":"IF(E18=2,TRUE,FALSE)","v":false}]
[null,null,null,null,null,{"$f":"IF(E18=3,TRUE,FALSE)","v":false}]
[null,null,null,null,null,{"$f":"IF(E18=4,TRUE,FALSE)","v":false}]
[null,"Действия для достижения максимальной устойчивости","Ответственное учреждение","Сроки"]
[]
[]
[null,"П 4.3 – Строительные нормы и стандарты"]
[null,"Вопрос","Комментарии"]
[]
[null,"Ответ","Средства проверки (пояснения и доказательства)"]
[null,null,null,null,null,{"$f":"IF(E29=1,TRUE,FALSE)","v":false}]
[null,null,null,null,null,{"$f":"IF(E29=2,TRUE,FALSE)","v":false}]
[null,null,null,null,null,{"$f":"IF(E29=3,TRUE,FALSE)","v":false}]
[null,null,null,null,null,{"$f":"IF(E29=4,TRUE,FALSE)","v":false}]
[null,"Действия для достижения максимальной устойчивости","Ответственное учреждение","Сроки"]
[]
[]
[null,"П 4.4 – Применение зонирования, строительных норм и стандартов"]
[null,"Вопрос","Комментарии"]
[]
[null,"Ответ","Средства проверки (пояснения и доказательства)"]
[null,null,null,null,null,{"$f":"IF(E40=1,TRUE,FALSE)","v":false}]
[null,null,null,null,null,{"$f":"IF(E40=2,TRUE,FALSE)","v":false}]
[null,null,null,null,null,{"$f":"IF(E40=3,TRUE,FALSE)","v":false}]
[null,null,null,null,null,{"$f":"IF(E40=4,TRUE,FALSE)","v":false}]
[null,"Действия для достижения максимальной устойчивости","Ответственное учреждение","Сроки"]

{"sheet":"E05","index":7,"n_rows":33,"n_cols":6,"rows_kept":33,"cut":false,"hidden":false,"merged":[[15,2,15,3],[16,2,16,3],[6,2,9,3],[3,2,3,3],[4,2,4,3],[5,2,5,3],[14,2,14,3],[25,2,25,3],[26,2,26,3],[27,2,27,3],[28,2,31,3],[17,2,20,3]]}
[]
[]
[null,"П 5.1  – Осознание роли экосистемных функций "]
[null,"Вопрос","Комментарии"]
[]
[null,"Ответ","Средства проверки (пояснения и доказательства)"]
[null,null,null,null,null,{"$f":"IF(E7=1,TRUE,FALSE)","v":false}]
[null,null,null,null,null,{"$f":"IF(E7=2,TRUE,FALSE)","v":false}]
[null,null,null,null,null,{"$f":"IF(E7=3,TRUE,FALSE)","v":false}]
[null,null,null,null,null,{"$f":"IF(E7=4,TRUE,FALSE)","v":false}]
[null,"Действия для достижения максимальной устойчивости","Ответственное учреждение","Сроки"]
[]
[]
[null,"П 5.2 – Интеграция «зеленой» и «синей» инфраструктуры в городскую политику и проекты (Зеленая инфраструктура - связанная система различных озелененных пространств города (городские парки, скверы и др.). Синяя инфраструктура - система различных водных объектов города)"]
[null,"Вопрос","Комментарии"]
[]
[null,"Ответ","Средства проверки (пояснения и доказательства)"]
[null,null,null,null,null,{"$f":"IF(E18=1,TRUE,FALSE)","v":false}]
[null,null,null,null,null,{"$f":"IF(E18=2,TRUE,FALSE)","v":false}]
[null,null,null,null,null,{"$f":"IF(E18=3,TRUE,FALSE)","v":false}]
[null,null,null,null,null,{"$f":"IF(E18=4,TRUE,FALSE)","v":false}]
[null,"Действия для достижения максимальной устойчивости","Ответственное учреждение","Сроки"]
[]
[]
[null,"П 5.3 – Трансграничные экологические вопросы"]
[null,"Вопрос","Комментарии"]
[]
[null,"Ответ","Средства проверки (пояснения и доказательства)"]
[null,null,null,null,null,{"$f":"IF(E29=1,TRUE,FALSE)","v":false}]
[null,null,null,null,null,{"$f":"IF(E29=2,TRUE,FALSE)","v":false}]
[null,null,null,null,null,{"$f":"IF(E29=3,TRUE,FALSE)","v":false}]
[null,null,null,null,null,{"$f":"IF(E29=4,TRUE,FALSE)","v":false}]
[null,"Действия для достижения максимальной устойчивости","Ответственное учреждение","Сроки"]

{"sheet":"E06","index":8,"n_rows":66,"n_cols":6,"rows_kept":66,"cut":false,"hidden":false,"merged":[[59,2,59,3],[16,2,16,3],[3,2,3,3],[4,2,4,3],[5,2,5,3],[14,2,14,3],[15,2,15,3],[6,2,9,3],[61,2,64,3],[50,2,53,3],[39,2,42,3],[28,2,31,3],[17,2,20,3],[60,2,60,3],[25,2,25,3],[26,2,26,3],[27,2,27,3],[36,2,36,3],[37,2,37,3],[38,2,38,3],[47,2,47,3],[48,2,48,3],[49,2,49,3],[58,2,58,3]]}
[]
[]
[null,"П 6.1 – Навыки и опыт"]
[null,"Вопрос","Комментарии"]
[]
[null,"Ответ","Средства проверки (пояснения и доказательства)"]
[null,null,null,null,null,{"$f":"IF(E7=1,TRUE,FALSE)","v":false}]
[null,null,null,null,null,{"$f":"IF(E7=2,TRUE,FALSE)","v":false}]
[null,null,null,null,null,{"$f":"IF(E7=3,TRUE,FALSE)","v":false}]
[null,null,null,null,null,{"$f":"IF(E7=4,TRUE,FALSE)","v":false}]
[null,"Действия для достижения максимальной устойчивости","Ответственное учреждение","Сроки"]
[]
[]
[null,"П 6.2 – Просветительская и информационно-разъяснительная работа с населением"]
[null,"Вопрос","Комментарии"]
[]
[null,"Ответ","Средства проверки (пояснения и доказательства)"]
[null,null,null,null,null,{"$f":"IF(E18=1,TRUE,FALSE)","v":false}]
[null,null,null,null,null,{"$f":"IF(E18=2,TRUE,FALSE)","v":false}]
[null,null,null,null,null,{"$f":"IF(E18=3,TRUE,FALSE)","v":false}]
[null,null,null,null,null,{"$f":"IF(E18=4,TRUE,FALSE)","v":false}]
[null,"Действия для достижения максимальной устойчивости","Ответственное учреждение","Сроки"]
[]
[]
[null,"П 6.3 – Обмен данными"]
[null,"Вопрос","Комментарии"]
[]
[null,"Ответ","Средства проверки (пояснения и доказательства)"]
[null,null,null,null,null,{"$f":"IF(E29=1,TRUE,FALSE)","v":false}]
[null,null,null,null,null,{"$f":"IF(E29=2,TRUE,FALSE)","v":false}]
[null,null,null,null,null,{"$f":"IF(E29=3,TRUE,FALSE)","v":false}]
[null,null,null,null,null,{"$f":"IF(E29=4,TRUE,FALSE)","v":false}]
[null,"Действия для достижения максимальной устойчивости","Ответственное учреждение","Сроки"]
[]
[]
[null,"П 6.4 – Подготовка / обучение"]
[null,"Вопрос","Комментарии"]
[]
[null,"Ответ","Средства проверки (пояснения и доказательства)"]
[null,null,null,null,null,{"$f":"IF(E40=1,TRUE,FALSE)","v":false}]
[null,null,null,null,null,{"$f":"IF(E40=2,TRUE,FALSE)","v":false}]
[null,null,null,null,null,{"$f":"IF(E40=3,TRUE,FALSE)","v":false}]
[null,null,null,null,null,{"$f":"IF(E40=4,TRUE,FALSE)","v":false}]
[null,"Действия для достижения максимальной устойчивости","Ответственное учреждение","Сроки"]
[]
[]
[null,"П 6.5 – Языки"]
[null,"Вопрос","Комментарии"]
[]
[null,"Ответ","Средства проверки (пояснения и доказательства)"]
[null,null,null,null,null,{"$f":"IF(E51=1,TRUE,FALSE)","v":false}]
[null,null,null,null,null,{"$f":"IF(E51=2,TRUE,FALSE)","v":false}]
[null,null,null,null,null,{"$f":"IF(E51=3,TRUE,FALSE)","v":false}]
[null,null,null,null,null,{"$f":"IF(E51=4,TRUE,FALSE)","v":false}]
[null,"Действия для достижения максимальной устойчивости","Ответственное учреждение","Сроки"]
[]
[]
[null,"П 6.6 – Перенимание чужого опыта"]
[null,"Вопрос","Комментарии"]
[]
[null,"Ответ","Средства проверки (пояснения и доказательства)"]
[null,null,null,null,null,{"$f":"IF(E62=1,TRUE,FALSE)","v":false}]
[null,null,null,null,null,{"$f":"IF(E62=2,TRUE,FALSE)","v":false}]
[null,null,null,null,null,{"$f":"IF(E62=3,TRUE,FALSE)","v":false}]
[null,null,null,null,null,{"$f":"IF(E62=4,TRUE,FALSE)","v":false}]
[null,"Действия для достижения максимальной устойчивости","Ответственное учреждение","Сроки"]

{"sheet":"E07","index":9,"n_rows":44,"n_cols":6,"rows_kept":44,"cut":false,"hidden":false,"merged":[[16,2,16,3],[6,2,9,3],[3,2,3,3],[4,2,4,3],[5,2,5,3],[14,2,14,3],[15,2,15,3],[17,2,20,3],[28,2,31,3],[39,2,42,3],[25,2,25,3],[26,2,26,3],[27,2,27,3],[36,2,36,3],[37,2,37,3],[38,2,38,3]]}
[]
[]
[null,"П7.1 – Местные общественные организации, сети и подготовка"]
[null,"Вопрос","Комментарии"]
[]
[null,"Ответ","Средства проверки (пояснения и доказательства)"]
[null,null,null,null,null,{"$f":"IF(E7=1,TRUE,FALSE)","v":false}]
[null,null,null,null,null,{"$f":"IF(E7=2,TRUE,FALSE)","v":false}]
[null,null,null,null,null,{"$f":"IF(E7=3,TRUE,FALSE)","v":false}]
[null,null,null,null,null,{"$f":"IF(E7=4,TRUE,FALSE)","v":false}]
[null,"Действия для достижения максимальной устойчивости","Ответственное учреждение","Сроки"]
[]
[]
[null,"П7.2 – Сетевые сообщества («никто не остается без внимания»)"]
[null,"Вопрос","Комментарии"]
[]
[null,"Ответ","Средства проверки (пояснения и доказательства)"]
[null,null,null,null,null,{"$f":"IF(E18=1,TRUE,FALSE)","v":false}]
[null,null,null,null,null,{"$f":"IF(E18=2,TRUE,FALSE)","v":false}]
[null,null,null,null,null,{"$f":"IF(E18=3,TRUE,FALSE)","v":false}]
[null,null,null,null,null,{"$f":"IF(E18=4,TRUE,FALSE)","v":false}]
[null,"Действия для достижения максимальной устойчивости","Ответственное учреждение","Сроки"]
[]
[]
[null,"П7.3 – Частный сектор (наниматели)"]
[null,"Вопрос","Комментарии"]
[]
[null,"Ответ","Средства проверки (пояснения и доказательства)"]
[null,null,null,null,null,{"$f":"IF(E29=1,TRUE,FALSE)","v":false}]
[null,null,null,null,null,{"$f":"IF(E29=2,TRUE,FALSE)","v":false}]
[null,null,null,null,null,{"$f":"IF(E29=3,TRUE,FALSE)","v":false}]
[null,null,null,null,null,{"$f":"IF(E29=4,TRUE,FALSE)","v":false}]
[null,"Действия для достижения максимальной устойчивости","Ответственное учреждение","Сроки"]
[]
[]
[null,"П7.4 – Методы взаимодействия с гражданами"]
[null,"Вопрос","Комментарии"]
[]
[null,"Ответ","Средства проверки (пояснения и доказательства)"]
[null,null,null,null,null,{"$f":"IF(E40=1,TRUE,FALSE)","v":false}]
[null,null,null,null,null,{"$f":"IF(E40=2,TRUE,FALSE)","v":false}]
[null,null,null,null,null,{"$f":"IF(E40=3,TRUE,FALSE)","v":false}]
[null,null,null,null,null,{"$f":"IF(E40=4,TRUE,FALSE)","v":false}]
[null,"Действия для достижения максимальной устойчивости","Ответственное учреждение","Сроки"]

{"sheet":"E08","index":10,"n_rows":99,"n_cols":6,"rows_kept":99,"cut":false,"hidden":false,"merged":[[3,2,3,3],[4,2,4,3],[5,2,5,3],[14,2,14,3],[15,2,15,3],[6,2,9,3],[80,2,80,3],[81,2,81,3],[82,2,82,3],[47,2,47,3],[48,2,48,3],[49,2,49,3],[58,2,58,3],[59,2,59,3],[60,2,60,3],[61,2,64,3],[72,2,75,3],[69,2,69,3],[70,2,70,3],[71,2,71,3],[16,2,16,3],[83,2,86,3],[94,2,97,3],[91,2,91,3],[92,2,92,3],[93,2,93,3],[17,2,20,3],[28,2,31,3],[39,2,42,3],[50,2,53,3],[25,2,25,3],[26,2,26,3],[27,2,27,3],[36,2,36,3],[37,2,37,3],[38,2,38,3]]}
[]
[]
[null,"П8.1 – Обзор критически важной инфраструктуры"]
[null,"Вопрос","Комментарии"]
[]
[null,"Ответ","Средства проверки (пояснения и доказательства)"]
[null,null,null,null,null,{"$f":"IF(E7=1,TRUE,FALSE)","v":false}]
[null,null,null,null,null,{"$f":"IF(E7=2,TRUE,FALSE)","v":false}]
[null,null,null,null,null,{"$f":"IF(E7=3,TRUE,FALSE)","v":false}]
[null,null,null,null,null,{"$f":"IF(E7=4,TRUE,FALSE)","v":false}]
[null,"Действия для достижения максимальной устойчивости","Ответственное учреждение","Сроки"]
[]
[]
[null,"П8.2 – Защитная инфраструктура"]
[null,"Вопрос","Комментарии"]
[]
[null,"Ответ","Средства проверки (пояснения и доказательства)"]
[null,null,null,null,null,{"$f":"IF(E18=1,TRUE,FALSE)","v":false}]
[null,null,null,null,null,{"$f":"IF(E18=2,TRUE,FALSE)","v":false}]
[null,null,null,null,null,{"$f":"IF(E18=3,TRUE,FALSE)","v":false}]
[null,null,null,null,null,{"$f":"IF(E18=4,TRUE,FALSE)","v":false}]
[null,"Действия для достижения максимальной устойчивости","Ответственное учреждение","Сроки"]
[]
[]
[null,"П8.3 – Вода – Питьевое водоснабжение и канализация "]
[null,"Вопрос","Комментарии"]
[]
[null,"Ответ","Средства проверки (пояснения и доказательства)"]
[null,null,null,null,null,{"$f":"IF(E29=1,TRUE,FALSE)","v":false}]
[null,null,null,null,null,{"$f":"IF(E29=2,TRUE,FALSE)","v":false}]
[null,null,null,null,null,{"$f":"IF(E29=3,TRUE,FALSE)","v":false}]
[null,null,null,null,null,{"$f":"IF(E29=4,TRUE,FALSE)","v":false}]
[null,"Действия для достижения максимальной устойчивости","Ответственное учреждение","Сроки"]
[]
[]
[null,"П8.4 – Энергоснабжение"]
[null,"Вопрос","Комментарии"]
[]
[null,"Ответ","Средства проверки (пояснения и доказательства)"]
[null,null,null,null,null,{"$f":"IF(E40=1,TRUE,FALSE)","v":false}]
[null,null,null,null,null,{"$f":"IF(E40=2,TRUE,FALSE)","v":false}]
[null,null,null,null,null,{"$f":"IF(E40=3,TRUE,FALSE)","v":false}]
[null,null,null,null,null,{"$f":"IF(E40=4,TRUE,FALSE)","v":false}]
[null,"Действия для достижения максимальной устойчивости","Ответственное учреждение","Сроки"]
[]
[]
[null,"П8.5 –  Транспорт"]
[null,"Вопрос","Комментарии"]
[]
[null,"Ответ","Средства проверки (пояснения и доказательства)"]
[null,null,null,null,null,{"$f":"IF(E51=1,TRUE,FALSE)","v":false}]
[null,null,null,null,null,{"$f":"IF(E51=2,TRUE,FALSE)","v":false}]
[null,null,null,null,null,{"$f":"IF(E51=3,TRUE,FALSE)","v":false}]
[null,null,null,null,null,{"$f":"IF(E51=4,TRUE,FALSE)","v":false}]
[null,"Действия для достижения максимальной устойчивости","Ответственное учреждение","Сроки"]
[]
[]
[null,"П8.6 – Линии связи"]
[null,"Вопрос","Комментарии"]
[]
[null,"Ответ","Средства проверки (пояснения и доказательства)"]
[null,null,null,null,null,{"$f":"IF(E62=1,TRUE,FALSE)","v":false}]
[null,null,null,null,null,{"$f":"IF(E62=2,TRUE,FALSE)","v":false}]
[null,null,null,null,null,{"$f":"IF(E62=3,TRUE,FALSE)","v":false}]
[null,null,null,null,null,{"$f":"IF(E62=4,TRUE,FALSE)","v":false}]
[null,"Действия для достижения максимальной устойчивости","Ответственное учреждение","Сроки"]
[]
[]
[null,"П8.7 – Здравоохранение"]
[null,"Вопрос","Комментарии"]
[]
[null,"Ответ","Средства проверки (пояснения и доказательства)"]
[null,null,null,null,null,{"$f":"IF(E73=1,TRUE,FALSE)","v":false}]
[null,null,null,null,null,{"$f":"IF(E73=2,TRUE,FALSE)","v":false}]
[null,null,null,null,null,{"$f":"IF(E73=3,TRUE,FALSE)","v":false}]
[null,null,null,null,null,{"$f":"IF(E73=4,TRUE,FALSE)","v":false}]
[null,"Действия для достижения максимальной устойчивости","Ответственное учреждение","Сроки"]
[]
[]
[null,"П8.8 – Образовательные учреждения"]
[null,"Вопрос","Комментарии"]
[]
[null,"Ответ","Средства проверки (пояснения и доказательства)"]
[null,null,null,null,null,{"$f":"IF(E84=1,TRUE,FALSE)","v":false}]
[null,null,null,null,null,{"$f":"IF(E84=2,TRUE,FALSE)","v":false}]
[null,null,null,null,null,{"$f":"IF(E84=3,TRUE,FALSE)","v":false}]
[null,null,null,null,null,{"$f":"IF(E84=4,TRUE,FALSE)","v":false}]
[null,"Действия для достижения максимальной устойчивости","Ответственное учреждение","Сроки"]
[]
[]
[null,"П8.9 – Оснащенность сил реагирования на бедствия"]
[null,"Вопрос","Комментарии"]
[]
[null,"Ответ","Средства проверки (пояснения и доказательства)"]
[null,null,null,null,null,{"$f":"IF(E95=1,TRUE,FALSE)","v":false}]
[null,null,null,null,null,{"$f":"IF(E95=2,TRUE,FALSE)","v":false}]
[null,null,null,null,null,{"$f":"IF(E95=3,TRUE,FALSE)","v":false}]
[null,null,null,null,null,{"$f":"IF(E95=4,TRUE,FALSE)","v":false}]
[null,"Действия для достижения максимальной устойчивости","Ответственное учреждение","Сроки"]

{"sheet":"E09","index":11,"n_rows":77,"n_cols":6,"rows_kept":77,"cut":false,"hidden":false,"merged":[[38,2,38,3],[3,2,3,3],[4,2,4,3],[5,2,5,3],[14,2,14,3],[15,2,15,3],[16,2,16,3],[25,2,25,3],[26,2,26,3],[27,2,27,3],[36,2,36,3],[37,2,37,3],[72,2,75,3],[69,2,69,3],[70,2,70,3],[71,2,71,3],[6,2,9,3],[17,2,20,3],[28,2,31,3],[39,2,42,3],[50,2,53,3],[61,2,64,3],[47,2,47,3],[48,2,48,3],[49,2,49,3],[58,2,58,3],[59,2,59,3],[60,2,60,3]]}
[]
[]
[null,"П9.1 – Раннее оповещение"]
[null,"Вопрос","Комментарии"]
[]
[null,"Ответ","Средства проверки (пояснения и доказательства)"]
[null,null,null,null,null,{"$f":"IF(E7=1,TRUE,FALSE)","v":false}]
[null,null,null,null,null,{"$f":"IF(E7=2,TRUE,FALSE)","v":false}]
[null,null,null,null,null,{"$f":"IF(E7=3,TRUE,FALSE)","v":false}]
[null,null,null,null,null,{"$f":"IF(E7=4,TRUE,FALSE)","v":false}]
[null,"Действия для достижения максимальной устойчивости","Ответственное учреждение","Сроки"]
[]
[]
[null,"П9.2 – План борьбы с бедствиями"]
[null,"Вопрос","Комментарии"]
[]
[null,"Ответ","Средства проверки (пояснения и доказательства)"]
[null,null,null,null,null,{"$f":"IF(E18=1,TRUE,FALSE)","v":false}]
[null,null,null,null,null,{"$f":"IF(E18=2,TRUE,FALSE)","v":false}]
[null,null,null,null,null,{"$f":"IF(E18=3,TRUE,FALSE)","v":false}]
[null,null,null,null,null,{"$f":"IF(E18=4,TRUE,FALSE)","v":false}]
[null,"Действия для достижения максимальной устойчивости","Ответственное учреждение","Сроки"]
[]
[]
[null,"П9.3 – Кадровая обеспеченность  "]
[null,"Вопрос","Комментарии"]
[]
[null,"Ответ","Средства проверки (пояснения и доказательства)"]
[null,null,null,null,null,{"$f":"IF(E29=1,TRUE,FALSE)","v":false}]
[null,null,null,null,null,{"$f":"IF(E29=2,TRUE,FALSE)","v":false}]
[null,null,null,null,null,{"$f":"IF(E29=3,TRUE,FALSE)","v":false}]
[null,null,null,null,null,{"$f":"IF(E29=4,TRUE,FALSE)","v":false}]
[null,"Действия для достижения максимальной устойчивости","Ответственное учреждение","Сроки"]
[]
[]
[null,"П9.4 – Потребности в оборудовании и запасах для оказания помощи"]
[null,"Вопрос","Комментарии"]
[]
[null,"Ответ","Средства проверки (пояснения и доказательства)"]
[null,null,null,null,null,{"$f":"IF(E40=1,TRUE,FALSE)","v":false}]
[null,null,null,null,null,{"$f":"IF(E40=2,TRUE,FALSE)","v":false}]
[null,null,null,null,null,{"$f":"IF(E40=3,TRUE,FALSE)","v":false}]
[null,null,null,null,null,{"$f":"IF(E40=4,TRUE,FALSE)","v":false}]
[null,"Действия для достижения максимальной устойчивости","Ответственное учреждение","Сроки"]
[]
[]
[null,"П9.5 – Обеспечение продовольствием, укрытиями, товарами первой необходимости и топливом  "]
[null,"Вопрос","Комментарии"]
[]
[null,"Ответ","Средства проверки (пояснения и доказательства)"]
[null,null,null,null,null,{"$f":"IF(E51=1,TRUE,FALSE)","v":false}]
[null,null,null,null,null,{"$f":"IF(E51=2,TRUE,FALSE)","v":false}]
[null,null,null,null,null,{"$f":"IF(E51=3,TRUE,FALSE)","v":false}]
[null,null,null,null,null,{"$f":"IF(E51=4,TRUE,FALSE)","v":false}]
[null,"Действия для достижения максимальной устойчивости","Ответственное учреждение","Сроки"]
[]
[]
[null,"П9.6 – Способность к взаимодействию и межведомственное сотрудничество "]
[null,"Вопрос","Комментарии"]
[]
[null,"Ответ","Средства проверки (пояснения и доказательства)"]
[null,null,null,null,null,{"$f":"IF(E62=1,TRUE,FALSE)","v":false}]
[null,null,null,null,null,{"$f":"IF(E62=2,TRUE,FALSE)","v":false}]
[null,null,null,null,null,{"$f":"IF(E62=3,TRUE,FALSE)","v":false}]
[null,null,null,null,null,{"$f":"IF(E62=4,TRUE,FALSE)","v":false}]
[null,"Действия для достижения максимальной устойчивости","Ответственное учреждение","Сроки"]
[]
[]
[null,"П9.7 – Практические учения"]
[null,"Вопрос","Комментарии"]
[]
[null,"Ответ","Средства проверки (пояснения и доказательства)"]
[null,null,null,null,null,{"$f":"IF(E73=1,TRUE,FALSE)","v":false}]
[null,null,null,null,null,{"$f":"IF(E73=2,TRUE,FALSE)","v":false}]
[null,null,null,null,null,{"$f":"IF(E73=3,TRUE,FALSE)","v":false}]
[null,null,null,null,null,{"$f":"IF(E73=4,TRUE,FALSE)","v":false}]
[null,"Действия для достижения максимальной устойчивости","Ответственное учреждение","Сроки"]

{"sheet":"E10","index":12,"n_rows":22,"n_cols":6,"rows_kept":22,"cut":false,"hidden":false,"merged":[[17,2,20,3],[6,2,9,3],[3,2,3,3],[4,2,4,3],[5,2,5,3],[14,2,14,3],[15,2,15,3],[16,2,16,3]]}
[]
[]
[null,"П10.1  – Заблаговременное планирование восстановления после бедствия "]
[null,"Вопрос","Комментарии"]
[]
[null,"Ответ","Средства проверки (пояснения и доказательства)"]
[null,null,null,null,null,{"$f":"IF(E7=1,TRUE,FALSE)","v":false}]
[null,null,null,null,null,{"$f":"IF(E7=2,TRUE,FALSE)","v":false}]
[null,null,null,null,null,{"$f":"IF(E7=3,TRUE,FALSE)","v":false}]
[null,null,null,null,null,{"$f":"IF(E7=4,TRUE,FALSE)","v":false}]
[null,"Действия для достижения максимальной устойчивости","Ответственное учреждение","Сроки"]
[]
[]
[null,"П10.2  – Извлечение уроков и их закрепление"]
[null,"Вопрос","Комментарии"]
[]
[null,"Ответ","Средства проверки (пояснения и доказательства)"]
[null,null,null,null,null,{"$f":"IF(E18=1,TRUE,FALSE)","v":false}]
[null,null,null,null,null,{"$f":"IF(E18=2,TRUE,FALSE)","v":false}]
[null,null,null,null,null,{"$f":"IF(E18=3,TRUE,FALSE)","v":false}]
[null,null,null,null,null,{"$f":"IF(E18=4,TRUE,FALSE)","v":false}]
[null,"Действия для достижения максимальной устойчивости","Ответственное учреждение","Сроки"]

{"sheet":"About","index":13,"n_rows":0,"n_cols":0,"rows_kept":0,"cut":false,"hidden":false,"merged":[]}